fUSD/lending_fUSD_20240330
["ID","MTS","AMOUNT","RATE_DAILY","PERIOD"]
[321020597,1711781449735,-2898.420597,0.00049315,120]
[321020598,1711781449745,-2898.420597,0.00049315,120]
[321020599,1711781449754,-2898.420597,0.00049315,120]
[321020600,1711781449763,-2898.420597,0.00049315,120]
[321020601,1711781449773,-2898.420597,0.00049315,120]
[321020602,1711781449782,-2898.420597,0.00049315,120]
[321020603,1711781449791,-2898.420597,0.00049315,120]
[321020604,1711781449800,-2898.420597,0.00049315,120]
[321020605,1711781449810,-2898.420597,0.00049315,120]
[321020606,1711781449819,-2898.420597,0.00049315,120]
[321020607,1711781449830,-2898.420597,0.00049315,120]
[321020608,1711781449840,-2898.420597,0.00049315,120]
[321020609,1711781449850,-2898.420597,0.00049315,120]
[321020610,1711781449859,-2898.420601,0.00049315,120]
[321020611,1711781449869,-523.49464,0.00049315,120]
[321020612,1711781449879,-523.49464,0.00049315,120]
[321020613,1711781449889,-152.940644,0.00049315,120]
[321020614,1711781449899,-523.49464,0.00049315,120]
[321020615,1711781449908,-523.49464,0.00049315,120]
[321020616,1711781449917,-523.49464,0.00049315,120]
[321020617,1711781449929,-523.49464,0.00049315,120]
[321020618,1711781449938,-523.49464,0.00049315,120]
[321020619,1711781449947,-523.49464,0.00049315,120]
[321020620,1711781449957,-523.49464,0.00049315,120]
[321020621,1711781449967,-523.49464,0.00049315,120]
[321020622,1711781449977,-523.49464,0.00049315,120]
[321020623,1711781449986,-523.49464,0.00049315,120]
[321020624,1711781449996,-523.49464,0.00049315,120]
[321020625,1711781450005,-523.49464,0.00049315,120]
[321020626,1711781450016,-523.49464,0.00049315,120]
[321020627,1711781450028,-523.49464,0.00049315,120]
[321020628,1711781450037,-523.49464,0.00049315,120]
[321020629,1711781450047,-523.49464,0.00049315,120]
[321020630,1711781450057,-523.49464,0.00049315,120]
[321020631,1711781450067,-523.494639,0.00049315,120]
[321020632,1711781450076,-151.0,0.00049315,120]
[321020633,1711781450086,-151.0,0.00049315,120]
[321020634,1711781450098,-151.796829,0.00049315,120]
[321020635,1711781450109,-151.0,0.00049315,120]
[321020636,1711781450120,-151.0,0.00049315,120]
[321020637,1711781450130,-151.0,0.00049315,120]
[321020638,1711781450285,-301.59601,0.00049315,120]
[321020639,1711781450300,-151.0,0.00049315,120]
[321020640,1711781450309,-151.0,0.00049315,120]
[321020641,1711781450319,-151.0,0.00049315,120]
[321020642,1711781450330,-151.0,0.00049315,120]
[321020643,1711781450340,-154.900858,0.00049315,120]
[321020644,1711781450350,-167.280978,0.00049315,120]
[321020645,1711781450359,-155.029412,0.00049315,120]
[321020646,1711781450369,-151.0,0.00049315,120]
[321020647,1711781450379,-151.0,0.00049315,120]
[321020648,1711781450390,-151.0,0.00049315,120]
[321020649,1711781450400,-151.0,0.00049315,120]
[321020650,1711781450410,-213.556702,0.00049315,120]
[321020651,1711781450420,-182.348349,0.00049315,120]
[321020652,1711781450430,-390.252248,0.00049315,120]
[321020653,1711781450440,-390.252248,0.00049315,120]
[321020654,1711781450451,-390.252248,0.00049315,120]
[321020655,1711781450460,-390.252248,0.00049315,120]
[321020656,1711781450470,-390.252248,0.00049315,120]
[321020657,1711781450480,-390.252248,0.00049315,120]
[321020658,1711781450491,-390.252248,0.00049315,120]
[321020659,1711781450500,-390.252248,0.00049315,120]
[321020660,1711781450509,-390.252248,0.00049315,120]
[321020661,1711781450519,-390.252248,0.00049315,120]
[321020662,1711781450529,-390.252248,0.00049315,120]
[321020663,1711781450539,-390.252248,0.00049315,120]
[321020664,1711781450548,-390.252248,0.00049315,120]
[321020665,1711781450558,-390.252248,0.00049315,120]
[321020666,1711781450568,-390.252248,0.00049315,120]
[321020667,1711781450577,-390.252248,0.00049315,120]
[321020668,1711781450588,-390.252248,0.00049315,120]
[321020669,1711781450598,-927.41458167,0.00049336,2]
[321020670,1711781450608,-1161.04649049,0.00049418,25]
[321020671,1711781450618,-151.033013,0.00049448,99]
[321020672,1711781450628,-3000.0,0.00049452,120]
[321020673,1711781450637,-18421.18927554,0.00049461,2]
[321020674,1711781450647,-4821.24114706,0.000495,120]
[321020675,1711781450656,-150.0,0.000495,10]
[321020676,1711781450666,-523.0,0.00049534,60]
[321020677,1711781450675,-540.0,0.00049534,60]
[321020678,1711781450685,-646.0,0.00049534,60]
[321020679,1711781450695,-2452.0,0.00049537,2]
[321020680,1711781450704,-5687.0,0.00049537,2]
[321020681,1711781450714,-1177.0,0.00049537,2]
[321020682,1711781450725,-4777.0,0.00049537,2]
[321020683,1711781450735,-43018.0,0.00049537,2]
[321020684,1711781450745,-1048.0,0.00049537,2]
[321020685,1711781450755,-1244.52696535,0.00049568,2]
[321020686,1711781450766,-900.0,0.00049588,90]
[321020687,1711781450775,-700.0,0.00049588,90]
[321020688,1711781450785,-1100.0,0.00049588,90]
[321020689,1711781450795,-3000.0,0.00049589,120]
[321020690,1711781450805,-5000.0,0.00049589,3]
[321020691,1711781450815,-242.243544,0.00049601,30]
[321020692,1711781450825,-242.243544,0.00049601,30]
[321020693,1711781450834,-685.43,0.00049601,30]
[321020694,1711781450845,-339.140962,0.00049601,30]
[321020695,1711781450855,-242.243545,0.00049601,30]
[321020696,1711781450865,-171.240319,0.00049601,30]
[321020697,1711781450874,-306.724188,0.0004968,120]
[321020698,1711781450884,-6133.7895203,0.00049702,2]
[321020699,1711781450894,-132259.4746533,0.00049702,2]
[321020700,1711781450905,-3000.0,0.00049726,120]
[321020701,1711781450914,-17434.8529052,0.00049736,2]
[321020702,1711781450927,-202748.2104,0.00049736,2]
[321020703,1711781450937,-151.033013,0.00049748,100]
[321020704,1711781450947,-2000.0,0.00049758,5]
[321020705,1711781450956,-1678.7495,0.00049758,5]
[321020706,1711781450966,-1355.75983874,0.0004977,120]
[321020707,1711781450976,-316616.5494459,0.0004977,5]
[321020708,1711781450986,-1161.04649049,0.00049794,26]
[321020709,1711781450996,-168.25128901,0.000498,60]
[321020710,1711781451006,-5000.0,0.000498,120]
[321020711,1711781451021,-191.19505175,0.000498,30]
[321020712,1711781451031,-205.57777778,0.00049808,120]
[321020713,1711781451040,-757.04751115,0.00049827,46]
[321020714,1711781451061,-500.0,0.00049862,90]
[321020715,1711781451072,-1100.0,0.00049862,90]
[321020716,1711781451082,-509.57,0.00049863,60]
[321020717,1711781451095,-3000.0,0.00049863,120]
[321020718,1711781451105,-1100.91111174,0.00049863,3]
[321020719,1711781451116,-326.53154234,0.00049863,120]
[321020720,1711781451126,-175.84446857,0.00049866,83]
[321020721,1711781451136,-384.91,0.00049888,2]
[321020722,1711781451146,-294.14962,0.00049896,25]
[321020723,1711781451156,-252.11715873,0.000499,120]
[321020724,1711781451167,-300.0,0.000499,18]
[321020725,1711781451178,-301.87,0.000499,7]
[321020726,1711781451190,-200.0,0.000499,18]
[321020727,1711781451201,-688.58971665,0.000499,2]
[321020728,1711781451211,-688.58971665,0.00049903,2]
[321020729,1711781451221,-1101.20084833,0.00049906,2]
[321020730,1711781451232,-1101.20084833,0.00049906,2]
[321020731,1711781451242,-206.97003773,0.0004991,2]
[321020732,1711781451252,-1284.07067323,0.00049913,2]
[321020733,1711781451263,-1101.20084833,0.00049916,2]
[321020734,1711781451273,-206.97003773,0.00049917,2]
[321020735,1711781451284,-58554.36070331,0.00049918,2]
[321020736,1711781451293,-185.71428561,0.00049918,2]
[321020737,1711781451303,-6712.3810424,0.00049918,2]
[321020738,1711781451314,-32261.24205031,0.00049919,2]
[321020739,1711781451324,-119442.7950786,0.00049921,2]
[321020740,1711781451334,-206.97003773,0.00049921,2]
[321020741,1711781451345,-1284.07067323,0.00049922,2]
[321020742,1711781451354,-185.71428561,0.00049922,2]
[321020743,1711781451365,-688.58971665,0.00049923,2]
[321020744,1711781451376,-32261.24205031,0.00049925,2]
[321020745,1711781451387,-58554.36070331,0.00049926,2]
[321020746,1711781451398,-58554.36070331,0.00049927,2]
[321020747,1711781451409,-1284.07067323,0.00049927,2]
[321020748,1711781451420,-185.71428561,0.00049928,2]
[321020749,1711781451431,-152.0,0.00049929,4]
[321020750,1711781451442,-152.0,0.00049929,4]
[321020751,1711781451452,-32261.24205031,0.00049931,2]
[321020752,1711781451462,-206.97003773,0.00049934,2]
[321020753,1711781451472,-1284.07067323,0.00049936,2]
[321020754,1711781451483,-58554.36070331,0.00049936,2]
[321020755,1711781451497,-155.82005817,0.00049936,2]
[321020756,1711781451507,-206.97003773,0.00049937,2]
[321020757,1711781451518,-32261.24205031,0.00049938,2]
[321020758,1711781451528,-155.82005817,0.00049941,2]
[321020759,1711781451538,-1284.07067323,0.00049942,2]
[321020760,1711781451548,-206.97003773,0.00049944,2]
[321020761,1711781451559,-32261.24205031,0.00049946,2]
[321020762,1711781451569,-32261.24205031,0.00049948,2]
[321020763,1711781451579,-58554.36070331,0.00049951,2]
[321020764,1711781451591,-58554.36070331,0.00049952,2]
[321020765,1711781451601,-1101.20084833,0.00049954,2]
[321020766,1711781451611,-688.58971665,0.00049955,2]
[321020767,1711781451622,-185.71428561,0.00049959,2]
[321020768,1711781451632,-155.82005817,0.00049963,2]
[321020769,1711781451642,-300.0,0.00049965,60]
[321020770,1711781451652,-688.58971665,0.00049966,2]
[321020771,1711781451662,-1193.7449948,0.00049966,2]
[321020772,1711781451672,-18867.3048604,0.00049966,2]
[321020773,1711781451682,-20299.7568155,0.00049966,2]
[321020774,1711781451691,-220224.6312,0.00049966,2]
[321020775,1711781451701,-237701.052,0.00049966,2]
[321020776,1711781451711,-7290.9725646,0.00049966,2]
[321020777,1711781451722,-7869.5640867,0.00049966,2]
[321020778,1711781451732,-106626.1155038,0.00049966,2]
[321020779,1711781451742,-93809.4359291,0.00049966,2]
[321020780,1711781451752,-1284.07067323,0.00049967,2]
[321020781,1711781451765,-1284.07067323,0.00049969,2]
[321020782,1711781451775,-185.71428561,0.00049969,2]
[321020783,1711781451785,-688.58971665,0.0004997,2]
[321020784,1711781451795,-688.58971665,0.00049974,2]
[321020785,1711781451805,-98286.18770261,0.0004998,2]
[321020786,1711781451815,-1101.20084833,0.00049983,2]
[321020787,1711781451826,-155.82005817,0.00049985,2]
[321020788,1711781451836,-155.82005817,0.00049985,2]
[321020789,1711781451846,-1101.20084833,0.00049989,2]
[321020790,1711781451856,-42871.86939971,0.0004999,2]
[321020791,1711781452557,-15682.4913036,0.0004999,2]
[321020792,1711781452569,-1101.20084833,0.0004999,2]
[321020793,1711781452578,-185.71428561,0.00049991,2]
[321020794,1711781452589,-155.82005817,0.00049991,2]
[321020795,1711781452600,-206.97003773,0.00049995,2]
[321020796,1711781452610,-185.71428561,0.00049996,2]
[321020797,1711781452619,-32261.24205031,0.0005,2]
[321020798,1711781452629,-155.82005817,0.0005,2]
[321020799,1711781452648,-1397231.76,0.0005,5]
[321020800,1711781452661,-217.10459111,0.0005,4]
[321020801,1711781452671,-434.87733397,0.0005,28]
[321020802,1711781452680,-233.58036097,0.0005,4]
[321020803,1711781452690,-32646.0,0.0005,4]
[321020804,1711781452699,-160.33643555,0.0005,30]
[321020805,1711781452709,-155.23479682,0.0005,4]
[321020806,1711781452719,-22054.88876554,0.0005,4]
[321020807,1711781452729,-27047.25475744,0.0005,4]
[321020808,1711781452738,-800.73645461,0.0005,30]
[321020809,1711781452748,-5000.0,0.0005,30]
[321020810,1711781452757,-25769.0,0.0005,120]
[321020811,1711781452767,-503.0,0.0005,30]
[321020812,1711781452776,-17369.78690029,0.0005,120]
[321020813,1711781454417,-390.252248,0.00049315,120]
[321020814,1711781454428,-204.747752,0.0005,120]
[321020815,1711781454866,-270.53942893,0.00039399,4]
[321020816,1711781454877,-224.3505712,0.00039497,4]
[321020817,1711781455030,-1004.78418343,0.00039497,4]
[321020818,1711781455040,-4400.0,0.000396,14]
[321020819,1711781455050,-206.0,0.00042796,2]
[321020820,1711781455064,-169.77,0.00048,120]
[321020821,1711781455075,-169.77,0.00048,120]
[321020822,1711781455086,-169.77,0.00048,120]
[321020823,1711781455097,-150.01,0.00048746,2]
[321020824,1711781455109,-3477.31196206,0.00048746,2]
[321020825,1711781455119,-390.252248,0.00049315,120]
[321020826,1711781455128,-151.0,0.00049315,120]
[321020827,1711781455137,-390.252256,0.00049315,120]
[321020828,1711781455147,-151.0,0.00049315,120]
[321020829,1711781455156,-233.682063,0.00049315,120]
[321020830,1711781455166,-105950.02478981,0.0005,120]
[321020831,1711781455177,-3504.7012,0.0005,120]
[321020832,1711781456046,-155.54671564,0.00036778,2]
[321020833,1711781456055,-4760.96255131,0.000397,14]
[321020834,1711781456106,155.68833836,0.00034657,4]
[321020835,1711781456590,903.0067,0.00034657,4]
[321020836,1711781457397,-155.0,0.00039496,4]
[321020837,1711781457406,-157.22316343,0.00039599,4]
[321020838,1711781457417,-156.0506198,0.00039599,4]
[321020839,1711781457427,-1139.03744869,0.000397,14]
[321020840,1711781457436,-7400.0,0.000398,14]
[321020841,1711781457446,-2358.97580479,0.00039878,4]
[321020842,1711781457456,-269.50105085,0.00039878,4]
[321020843,1711781457465,-1400.0,0.000399,14]
[321020844,1711781457475,-200.0,0.00042767,2]
[321020845,1711781457485,-489.17760472,0.00042795,7]
[321020846,1711781457494,-272.14,0.00043918,30]
[321020847,1711781457505,-502.32621429,0.000449,2]
[321020848,1711781457515,-1000.0,0.00046575,2]
[321020849,1711781457525,-189.0,0.00046575,2]
[321020850,1711781457535,-284.85,0.00046878,2]
[321020851,1711781457547,-169.77,0.00048,120]
[321020852,1711781457556,-169.77,0.00048,120]
[321020853,1711781457565,-169.77,0.00048,120]
[321020854,1711781457575,-169.77,0.00048,120]
[321020855,1711781457585,-169.77,0.00048,120]
[321020856,1711781457595,-169.77,0.00048,120]
[321020857,1711781457606,-169.77,0.00048,120]
[321020858,1711781457615,-169.77,0.00048,120]
[321020859,1711781457625,-169.77,0.00048,120]
[321020860,1711781457635,-169.77,0.00048,120]
[321020861,1711781457645,-169.77,0.00048,120]
[321020862,1711781457655,-169.77,0.00048,120]
[321020863,1711781457666,-169.77,0.00048,120]
[321020864,1711781457676,-169.77,0.00048,120]
[321020865,1711781457688,-169.77,0.00048,120]
[321020866,1711781457698,-169.77,0.00048,120]
[321020867,1711781457710,-169.77,0.00048,120]
[321020868,1711781457719,-169.77,0.00048,120]
[321020869,1711781457729,-169.77,0.00048,120]
[321020870,1711781457739,-169.77,0.00048,120]
[321020871,1711781457750,-169.77,0.00048,120]
[321020872,1711781457760,-169.77,0.00048,120]
[321020873,1711781457772,-169.77,0.00048,120]
[321020874,1711781457782,-169.77,0.00048,120]
[321020875,1711781457793,-169.77,0.00048,120]
[321020876,1711781457802,-169.77,0.00048,120]
[321020877,1711781457812,-169.77,0.00048,120]
[321020878,1711781457822,-169.77,0.00048,120]
[321020879,1711781457833,-169.77,0.00048,120]
[321020880,1711781457844,-169.77,0.00048,120]
[321020881,1711781457853,-169.77,0.00048,120]
[321020882,1711781457864,-169.77,0.00048,120]
[321020883,1711781457875,-169.77,0.00048,120]
[321020884,1711781457886,-169.77,0.00048,120]
[321020885,1711781457896,-169.77,0.00048,120]
[321020886,1711781457907,-169.77,0.00048,120]
[321020887,1711781457918,-169.77,0.00048,120]
[321020888,1711781457927,-169.77,0.00048,120]
[321020889,1711781457938,-150.01,0.00048746,2]
[321020890,1711781457948,-2401.00111666,0.00048746,2]
[321020891,1711781457957,-284.85,0.00048757,2]
[321020892,1711781457966,-284.85,0.00048757,2]
[321020893,1711781457975,-284.85,0.00048757,2]
[321020894,1711781457984,-173508.68970631,0.0005,120]
[321020895,1711781457993,-300.0,0.0005,2]
[321020896,1711781458002,-1050.07960252,0.0005,30]
[321020897,1711781458011,-952.44663204,0.0005,2]
[321020898,1711781458023,-167.35157281,0.0005,14]
[321020899,1711781458032,-21353.01401286,0.0005,120]
[321020900,1711781458041,-19382.94592913,0.0005,2]
[321020901,1711781458051,-402929.04280338,0.0005,14]
[321020902,1711781458061,-800.0,0.0005,120]
[321020903,1711781458070,-106031.99064502,0.0005,120]
[321020904,1711781458078,-257.08585724,0.0005,120]
[321020905,1711781458087,-40734.0,0.0005,120]
[321020906,1711781458098,-150.0,0.0005,27]
[321020907,1711781458108,-150.86750213,0.0005,120]
[321020908,1711781458118,-38960.36525178,0.0005,120]
[321020909,1711781458128,-9906.48,0.0005,120]
[321020910,1711781458139,-151.0,0.0005,120]
[321020911,1711781458149,-446.49507147,0.0005,2]
[321020912,1711781458159,-841.43315334,0.0005,2]
[321020913,1711781458169,-2592.04,0.0005,30]
[321020914,1711781458178,-160.631939,0.0005,60]
[321020915,1711781458188,-160.631939,0.0005,60]
[321020916,1711781458198,-160.631939,0.0005,60]
[321020917,1711781458208,-160.631939,0.0005,60]
[321020918,1711781458218,-1562.19721535,0.0005,2]
[321020919,1711781458228,-1009.0,0.0005,120]
[321020920,1711781458238,-5000.0,0.0005,120]
[321020921,1711781458248,-1000.0,0.0005,120]
[321020922,1711781458259,-1000.0,0.0005,30]
[321020923,1711781458270,-874.09507576,0.0005,30]
[321020924,1711781458282,-10000.0,0.0005,120]
[321020925,1711781458292,-500.0,0.0005,7]
[321020926,1711781458301,-5000.0,0.0005,120]
[321020927,1711781458311,-232.34,0.0005,120]
[321020928,1711781458322,-5167.0,0.0005,17]
[321020929,1711781458331,-150.0,0.0005,10]
[321020930,1711781458341,-3000.0,0.0005,120]
[321020931,1711781458351,-159.73622368,0.0005,2]
[321020932,1711781458360,-502.32621429,0.0005,30]
[321020933,1711781458370,-523.0,0.00050082,60]
[321020934,1711781458380,-540.0,0.00050082,60]
[321020935,1711781458390,-168146.60995238,0.000501,120]
[321020936,1711781460150,679.50665155,0.00034657,4]
[321020937,1711781461562,342.80337978,0.00033617,4]
[321020938,1711781470850,6000.77066017,0.00025,2]
[321020939,1711781470872,27779.83488661,0.00025,2]
[321020940,1711781471082,26658.48867947,0.00025,2]
[321020941,1711781471106,40682.0,0.00025,2]
[321020942,1711781471130,120000.0,0.00025,2]
[321020943,1711781471158,2766284.50648837,0.00025,2]
[321020944,1711781516241,1031.86663697,0.00025,2]
[321020946,1711781521980,40803.94251454,0.00042388,30]
[321020949,1711781532234,1033.7296584,0.00025,2]
[321020957,1711781621164,500.0,0.00042388,30]
[321020958,1711781640516,47934.40370463,0.00025,2]
[321020959,1711781640542,2233715.49351163,0.00025,2]
[321020960,1711781640566,54935.19087812,0.00025,2]
[321020962,1711781655398,155.56691115,0.00022,2]
[321020963,1711781672040,8768.8275405,0.00042388,120]
[321020964,1711781675465,500.0,0.00042388,30]
[321020965,1711781676376,672.10691344,0.0002415,2]
[321020967,1711781738984,19591.34811686,0.0002415,2]
[321020968,1711781754921,19591.34811686,0.0002415,2]
[321020969,1711781770959,3412.92627832,0.0002415,2]
[321020975,1711781859517,-887.5844693,0.00034995,4]
[321020976,1711781859538,-792.20977167,0.00034996,120]
[321020977,1711782070972,1587.98122997,0.00042243,30]
[321020978,1711782485924,224.15840732,0.00024,2]
[321020979,1711782509904,224.15840732,0.00024,2]
[321020980,1711782525870,225.41582772,0.00024,2]
[321020981,1711782560351,291.51554362,0.00024,2]
[321020982,1711782584347,291.51554362,0.00024,2]
[321020983,1711782608603,199.98480763,0.00024,2]
[321020997,1711782631789,-155.94887874,0.00034896,2]
[321020998,1711782631799,-232.0353273,0.00034995,4]
[321020999,1711782631811,-267.95,0.00034995,4]
[321021000,1711782631824,-715.12329073,0.00034995,4]
[321021001,1711782631845,-1319.6199062,0.00034995,4]
[321021002,1711782631854,-288.31954154,0.00034996,4]
[321021003,1711782631864,-11441.22226786,0.00034997,4]
[321021004,1711782631875,-2421.1316563,0.00034997,4]
[321021056,1711782637476,-3292.14121447,0.00034997,4]
[321021058,1711782637487,-1679.79424097,0.00034998,120]
[321021060,1711782637497,-150.0,0.00034998,3]
[321021062,1711782637507,-3851.8914283,0.00035,30]
[321021064,1711782637517,-155.94887867,0.00035277,2]
[321021066,1711782637527,-155.94887867,0.00035658,2]
[321021068,1711782637538,-1139.54,0.00035758,2]
[321021070,1711782637548,-155.94887867,0.00036039,2]
[321021072,1711782637558,-155.94887867,0.0003642,2]
[321021074,1711782637568,-155.94887867,0.00036801,2]
[321021076,1711782637578,-155.94887867,0.00037182,2]
[321021078,1711782637588,-321.67183798,0.00037413,4]
[321021081,1711782637598,-1246.49,0.00037414,2]
[321021083,1711782637609,-2314.73,0.00037414,2]
[321021085,1711782637618,-499.99,0.00037414,2]
[321021086,1711782637628,-44490.05,0.00037414,2]
[321021088,1711782637638,-386.0,0.00037414,2]
[321021090,1711782637648,-150.99,0.00037414,2]
[321021091,1711782637658,-10609.43,0.00037466,2]
[321021092,1711782637668,-150.69,0.00037476,2]
[321021093,1711782637681,-204.84,0.00037476,2]
[321021094,1711782637691,-1333.89,0.00037491,2]
[321021096,1711782637701,-250.0,0.0003756,2]
[321021098,1711782637712,-155.94887867,0.00037563,2]
[321021099,1711782637721,-833.92,0.00037565,2]
[321021100,1711782637731,-500.0,0.00037565,2]
[321021101,1711782637741,-250.0,0.00037568,112]
[321021102,1711782637751,-250.0,0.00037573,2]
[321021103,1711782637761,-150.0,0.00037578,2]
[321021104,1711782637772,-662.51,0.00037581,2]
[321021105,1711782637782,-1538.26,0.00037581,2]
[321021106,1711782637793,-240.35,0.00037582,4]
[321021107,1711782637804,-200.0,0.00037588,2]
[321021108,1711782637814,-500.0,0.00037591,2]
[321021109,1711782637824,-400.0,0.00037654,2]
[321021110,1711782637834,-1652.05,0.0003766,2]
[321021111,1711782637844,-3548.66,0.00037667,2]
[321021112,1711782637854,-500.0,0.00037679,2]
[321021113,1711782637864,-873.36,0.00037685,2]
[321021114,1711782637877,-23900.0,0.0003773,2]
[321021116,1711782637887,-600.0,0.00037833,2]
[321021117,1711782637898,-2497.14,0.00037873,30]
[321021118,1711782637907,-400.0,0.00037898,120]
[321021119,1711782637917,-263.77,0.00037902,2]
[321021120,1711782637926,-155.94887867,0.00037944,2]
[321021121,1711782637936,-167.1,0.00038,2]
[321021123,1711782637946,-263.77,0.00038006,2]
[321021124,1711782637959,-1139.54,0.00038022,2]
[321021125,1711782637969,-248.37,0.00038027,15]
[321021127,1711782637979,-263.77,0.0003811,2]
[321021128,1711782637989,-4909.63,0.00038146,2]
[321021129,1711782638000,-156.23779684,0.00038207,4]
[321021130,1711782638268,-551.45936805,0.00038207,15]
[321021131,1711782638289,-436.1534205,0.00038208,4]
[321021132,1711782638300,-263.77,0.00038214,2]
[321021133,1711782638309,-263.77,0.00038318,2]
[321021134,1711782638319,-155.94887867,0.00038325,2]
[321021135,1711782638329,-263.77,0.00038422,2]
[321021136,1711782638339,-210.0,0.00038498,5]
[321021137,1711782638349,-263.77,0.00038526,2]
[321021138,1711782638361,-263.77,0.0003863,2]
[321021139,1711782638372,-263.77,0.00038734,2]
[321021140,1711782638382,-263.77,0.00038837,2]
[321021141,1711782638393,-6338.55060256,0.00038839,2]
[321021142,1711782638405,-2762.08079912,0.00038839,2]
[321021143,1711782638414,-150.69,0.00038939,2]
[321021144,1711782638424,-263.77,0.00038941,2]
[321021145,1711782638434,-36808.55723831,0.00039026,2]
[321021146,1711782638443,-263.77,0.00039045,2]
[321021147,1711782638453,-159.09,0.00039073,2]
[321021148,1711782638463,-159.09,0.00039091,2]
[321021149,1711782638473,-159.09,0.00039108,2]
[321021150,1711782638483,-159.09,0.00039126,2]
[321021151,1711782638492,-159.09,0.00039144,2]
[321021152,1711782638502,-263.77,0.00039149,2]
[321021153,1711782638511,-159.09,0.00039162,2]
[321021154,1711782638520,-159.09,0.00039179,2]
[321021155,1711782638531,-159.09,0.00039197,2]
[321021156,1711782638541,-159.09,0.00039215,2]
[321021157,1711782638550,-159.09,0.00039233,2]
[321021158,1711782638560,-159.09,0.0003925,2]
[321021159,1711782638569,-167.52686643,0.00039252,4]
[321021160,1711782638579,-263.77,0.00039253,2]
[321021161,1711782638589,-159.09,0.00039268,2]
[321021162,1711782638599,-263.77,0.00039357,2]
[321021163,1711782638608,-175.03,0.00039443,2]
[321021164,1711782638617,-263.77,0.00039461,2]
[321021165,1711782638627,-263.77,0.00039565,2]
[321021166,1711782638636,-186.61,0.00039589,2]
[321021167,1711782638646,-2762.08079908,0.00039663,2]
[321021168,1711782638655,-263.77,0.00039669,2]
[321021169,1711782638665,-263.77,0.00039773,2]
[321021170,1711782638675,-263.77,0.00039877,2]
[321021171,1711782638685,-1836.1521,0.00039878,4]
[321021172,1711782638695,-2928.78533651,0.00039878,4]
[321021173,1711782638705,-2204.36150481,0.00039878,4]
[321021174,1711782638714,-3124.11419268,0.00039878,4]
[321021175,1711782638724,-17319.07424923,0.00039878,4]
[321021176,1711782638735,-216.15978688,0.00039898,4]
[321021177,1711782638744,-358.53438294,0.00039898,4]
[321021178,1711782638754,-512.7907693,0.00039898,4]
[321021179,1711782638764,-1220.00009282,0.00039899,2]
[321021180,1711782638774,-717.70640708,0.00039899,4]
[321021181,1711782638784,-261.36185061,0.00039899,4]
[321021182,1711782638793,-334.33540126,0.00039999,4]
[321021183,1711782638804,-74165.1479497,0.0004,2]
[321021184,1711782638814,-441.01478568,0.0004,15]
[321021185,1711782638824,-546.40226944,0.0004,4]
[321021186,1711782638834,-14480.23209643,0.0004,2]
[321021187,1711782638843,-1000.0,0.0004,20]
[321021188,1711782638853,-1992.63560356,0.0004,2]
[321021189,1711782638862,-337.57629848,0.0004,7]
[321021190,1711782638871,-389.0,0.000401,2]
[321021191,1711782638881,-166.66,0.00040274,2]
[321021192,1711782638891,-1139.54,0.00040286,2]
[321021193,1711782638901,-346.78131829,0.0004033,9]
[321021194,1711782638910,-6338.55060253,0.0004039,2]
[321021195,1711782638919,-150.69,0.00040402,2]
[321021196,1711782638929,-3548.66,0.00040406,2]
[321021197,1711782638939,-2762.08079908,0.00040488,2]
[321021198,1711782638949,-36808.55723827,0.00040556,2]
[321021199,1711782638958,-248.37,0.00040767,15]